bitfinex-derivatives/quotes_ETHF0:USTF0_20250125
["timestamp","ask_amount","ask_price","bid_price","bid_amount"]
[1737839553369,0.47969,3336.3,3336.1,0.48420775]
[1737839555162,0.4949,3336.2,3336.1,0.48420775]
[1737839556359,3.68746,3336.5,3336.1,0.00449775]
[1737839556559,0.38474306,3336.4,3336.3,0.47969]
[1737839556759,3.68747,3336.5,3336.1,0.00449775]
[1737839557370,0.38484262,3336.4,3336.1,0.00449775]
[1737839557567,0.38484262,3336.4,3336.2,0.4797]
[1737839557868,0.38484262,3336.4,3336.3,0.506]
[1737839558065,0.38484262,3336.4,3336.1,0.00449775]
[1737839558668,0.47969,3336.3,3336.1,0.00449775]
[1737839560065,0.47969,3336.3,3336.1,0.48420775]
[1737839561859,0.86452262,3336.4,3336.1,0.48420775]
[1737839562065,0.86452262,3336.4,3336.2,0.4797]
[1737839562564,0.38484262,3336.4,3336.3,0.47969]
[1737839563470,0.38484262,3336.4,3336.1,0.00449775]
[1737839563673,0.47969,3336.3,3336.1,0.48420775]
[1737839563873,0.86453262,3336.3,3336.1,0.48420775]
[1737839564074,0.38484262,3336.2,3336.1,0.48420775]
[1737839564263,0.47969,3336.3,3336.1,0.48420775]
[1737839564469,0.86452262,3336.4,3336.2,0.4797]
[1737839565074,0.38484262,3336.4,3336.1,0.00449775]
[1737839565270,0.77359391,3336.4,3336.2,0.47969]
[1737839565774,1.25326391,3336.4,3336.2,0.47969]
[1737839565974,0.77359391,3336.3,3336.2,0.47969]
[1737839568270,0.38484262,3336.3,3336.2,0.4797]
[1737839568475,0.77406254,3336.4,3336.2,0.4797]
[1737839568879,0.77406254,3336.4,3336.3,0.47969]
[1737839571486,0.00449775,3336.8,3336.7,0.47963]
[1737839572689,0.77998786,3336.8,3336.7,0.47963]
[1737839572983,0.39076794,3336.8,3336.7,0.47963]
[1737839573190,0.00449775,3336.8,3336.7,0.47963]
[1737839574294,0.00449775,3336.8,3336.7,3.68743]
[1737839574495,0.39076794,3336.8,3336.7,3.68743]
[1737839574794,0.00449775,3336.8,3336.7,3.68743]
[1737839575796,0.39076794,3336.8,3336.7,3.68743]
[1737839575985,0.00449775,3336.8,3336.7,3.68743]
[1737839577096,0.00449775,3336.8,3336.7,0.47963]
[1737839582002,0.77491343,3337.4,3337.3,0.47954]
[1737839583094,0.5216,3338.1,3337.9,0.47946]
[1737839583095,0.4921,3338.0,3337.9,0.47946]
[1737839583293,0.87732162,3338.0,3337.9,0.47946]
[1737839584090,0.00449775,3338.3,3337.7,2.27857177]
[1737839584298,0.00449775,3338.3,3338.2,0.47941]
[1737839584801,0.38936052,3338.3,3338.2,0.47941]
[1737839585599,0.00449775,3338.3,3338.2,0.47941]
[1737839587208,0.00449775,3338.3,3338.2,3.68721]
[1737839590815,0.00449775,3338.3,3338.2,4.19361]
[1737839596005,0.00449775,3338.3,3338.2,0.98581]
[1737839600915,0.5049,3339.0,3338.9,0.47931]
[1737839601110,0.4938,3339.3,3339.1,0.47928]
[1737839601511,0.9941,3339.2,3339.1,0.47928]
[1737839608617,0.9941,3339.2,3338.9,3.2078]
[1737839608818,0.38427372,3339.1,3338.9,3.6871]
[1737839609127,1.25105173,3339.1,3338.9,0.4793]
[1737839609328,0.77203027,3339.0,3338.9,0.4793]
[1737839610226,0.77203027,3339.0,3338.8,0.47932]
[1737839610422,0.38427372,3338.9,3338.8,0.47932]
[1737839610628,0.38781102,3339.0,3338.8,0.47932]
[1737839610829,0.77208474,3339.0,3338.8,0.47932]
[1737839611328,0.77208474,3339.0,3338.9,0.47931]
[1737839612019,0.38427372,3339.0,3338.9,0.47931]
[1737839612224,0.77208474,3339.1,3338.9,0.47931]
[1737839612425,0.77208474,3339.1,3339.0,0.4793]
[1737839615534,0.77208474,3339.1,3338.5,3.2078]
[1737839615832,0.77208474,3339.1,3338.6,0.47935]
[1737839616038,0.47932,3338.9,3338.6,0.47935]
[1737839616336,0.47931,3338.9,3338.7,0.47934]
[1737839616533,1.25139474,3338.9,3338.7,0.47934]
[1737839616736,0.77208474,3338.8,3338.7,0.47934]
[1737839620428,0.38427372,3338.8,3338.5,3.2078]
[1737839620640,0.5113,3338.7,3338.6,0.47936]
[1737839620832,1.28338474,3338.7,3338.6,0.47936]
[1737839629753,1.28338474,3338.7,3338.6,1.99446]
[1737839630059,0.77208474,3338.7,3338.6,1.99446]
[1737839630354,0.8684842,3339.0,3338.8,0.47931]
[1737839630552,0.77518169,3338.9,3338.8,0.47931]
[1737839631953,0.77518169,3339.0,3338.7,0.47934]
[1737839632152,0.77518169,3338.9,3338.8,0.47933]
[1737839633958,0.77518169,3338.9,3338.5,3.2078]
[1737839634162,0.47939,3338.4,3338.1,0.47943]
[1737839634361,0.47939,3338.4,3338.0,1.0129]
[1737839634665,1.4875,3338.3,3338.1,0.47943]
[1737839634854,0.77518169,3338.2,3338.1,0.47943]
[1737839635668,1.85305927,3338.2,3338.1,0.47943]
[1737839637663,0.77518169,3338.2,3338.1,0.47943]
[1737839653374,0.47943,3338.1,3337.9,0.97984775]
[1737839653577,0.86543319,3338.1,3337.9,0.97984775]
[1737839653873,0.38600319,3338.0,3337.9,0.97984775]
[1737839654373,0.47944,3338.0,3337.9,0.00449775]
[1737839654768,1.25403499,3338.0,3337.9,0.00449775]
[1737839654969,6.2594259,3338.0,3336.8,3.2078]
[1737839655168,3.2078,3337.5,3337.0,0.504]
[1737839655376,3.2078,3337.5,3336.8,3.2078]
[1737839655377,0.47957,3337.2,3336.9,0.47959]
[1737839655576,0.38600319,3337.3,3336.8,3.2078]
[1737839655772,1.36585319,3337.3,3337.1,0.47957]
[1737839656076,0.38600319,3337.2,3337.1,0.47957]
[1737839656270,0.38600319,3337.3,3337.2,0.47956]
[1737839656576,0.38600319,3337.4,3337.3,0.47954]
[1737839657280,0.86553319,3337.4,3337.2,0.47955]
[1737839657477,0.38600319,3337.3,3337.2,0.47955]
[1737839657778,1.07851982,3337.3,3337.1,0.47956]
[1737839657979,0.38600319,3337.2,3336.9,0.00449775]
[1737839658283,1.07851982,3337.1,3337.0,0.47958]
[1737839659071,1.07851982,3337.1,3336.9,0.00449775]
[1737839659265,1.07851982,3337.1,3336.9,0.48409775]
[1737839659680,0.95286,3337.2,3336.9,0.48409775]
[1737839660179,0.47958,3337.1,3336.9,0.00449775]
[1737839660366,0.47958,3337.1,3336.9,0.48409775]
[1737839660773,0.47958,3337.1,3336.9,0.00449775]
[1737839660968,0.47959,3337.0,3336.9,0.00449775]
[1737839661979,3.68739,3337.1,3336.9,0.00449775]
[1737839662183,0.47959,3337.0,3336.9,0.00449775]
[1737839662481,1.85993778,3337.0,3336.9,0.00449775]
[1737839663283,1.33993778,3337.0,3336.9,0.00449775]
[1737839664283,0.95519,3337.0,3336.9,0.00449775]
[1737839664580,0.4756,3337.0,3336.9,0.00449775]
[1737839664777,0.95519,3337.0,3336.9,0.00449775]
[1737839665083,1.33988335,3337.0,3336.9,0.00449775]
[1737839665575,0.95519,3337.0,3336.9,0.00449775]
[1737839665780,1.33980073,3337.0,3336.9,0.00449775]
[1737839666074,0.95519,3337.0,3336.9,0.00449775]
[1737839666279,1.33980392,3337.0,3336.9,0.00449775]
[1737839666473,0.95519,3337.0,3336.9,0.00449775]
[1737839666673,1.33976131,3337.0,3336.9,0.00449775]
[1737839668280,1.72734627,3337.0,3336.9,0.00449775]
[1737839668882,1.33976131,3337.0,3336.9,0.00449775]
[1737839669380,1.72733622,3337.0,3336.9,0.00449775]
[1737839671385,1.72733622,3337.0,3335.4,2.39905]
[1737839671386,0.47971,3336.2,3335.4,4.67756759]
[1737839671679,0.4925,3336.1,3335.9,3.68754]
[1737839671878,0.47975,3335.9,3335.6,0.47978]
[1737839672080,0.9757,3336.0,3335.6,0.47978]
[1737839672279,0.9757,3336.0,3335.3,3.2078]
[1737839672477,0.47975,3335.9,3335.3,3.2078]
[1737839672680,0.47975,3335.9,3335.6,0.47978]
[1737839673080,0.47975,3335.9,3335.5,0.00449775]
[1737839673283,0.47975,3335.9,3335.6,0.47978]
[1737839673978,0.9757,3336.0,3335.5,0.00449775]
[1737839673979,1.45544,3336.0,3335.5,0.00449775]
[1737839674186,0.4963,3336.0,3335.5,0.00449775]
[1737839674383,4.18002,3336.1,3335.8,0.47975]
[1737839674577,4.18002,3336.1,3335.9,1.5473]
[1737839674981,3.2078,3336.1,3336.0,0.47973]
[1737839677484,3.2078,3336.1,3335.9,1.5473]
[1737839677485,0.47967,3336.4,3336.1,0.47971]
[1737839677678,6.00221759,3336.5,3335.9,1.5473]
[1737839677880,0.4797,3336.3,3336.0,0.47972]
[1737839678280,6.00221759,3336.5,3335.9,1.5473]
[1737839678479,0.4797,3336.3,3336.0,0.47972]
[1737839678979,0.4797,3336.3,3336.1,0.47972]
[1737839679180,0.4797,3336.3,3335.9,1.5473]
[1737839679381,0.4797,3336.3,3336.0,0.47972]
[1737839679989,0.4797,3336.3,3335.9,1.5473]
[1737839680189,0.4797,3336.3,3336.1,0.47971]
[1737839680390,6.00221759,3336.5,3336.1,0.47971]
[1737839680584,0.47969,3336.3,3336.0,0.47972]
[1737839681785,0.4797,3336.2,3336.0,0.47972]
[1737839682487,2.27851759,3336.2,3335.9,1.5473]
[1737839682787,0.47972,3336.1,3335.9,2.02704]
[1737839683189,0.4744,3336.0,3335.9,2.02704]
[1737839684493,2.27851759,3336.2,3335.9,1.5473]
[1737839684794,0.99019,3336.3,3336.0,0.47973]
[1737839686391,0.38485255,3336.2,3336.0,0.47973]
[1737839686593,0.99019,3336.3,3336.0,0.47973]
[1737839686791,0.38485513,3336.2,3336.1,0.47972]
[1737839686994,0.99019,3336.3,3336.1,0.47972]
[1737839687393,3.59273014,3336.2,3336.1,0.47972]
[1737839687694,3.59273014,3336.2,3336.0,0.47972]
[1737839687891,3.2078,3336.2,3336.0,0.47972]
[1737839688192,0.38494193,3336.1,3336.0,0.47972]
[1737839688392,3.6875,3336.2,3336.0,0.47972]
[1737839689495,0.38506201,3336.1,3336.0,0.47972]
[1737839689697,3.6875,3336.2,3336.0,0.47972]
[1737839690501,0.4797,3336.2,3336.0,0.47972]
[1737839690794,4.07264187,3336.2,3336.0,0.47972]
[1737839691095,3.2078,3336.2,3336.0,0.47972]
[1737839691689,1.07927975,3336.1,3336.0,0.47972]
[1737839694396,1.46471947,3336.1,3336.0,0.47972]
[1737839697496,4.28707975,3336.5,3335.9,2.62657975]
[1737839697695,0.38569938,3336.4,3336.3,0.47969]
[1737839697892,3.2078,3336.5,3336.4,0.47967]
[1737839698795,1.55697975,3336.9,3336.3,1.07927975]
[1737839699097,1.55697975,3336.9,3336.8,0.47962]
[1737839699300,1.94272434,3336.9,3336.8,0.47962]
[1737839699699,0.86344459,3336.9,3336.8,0.47962]
[1737839700302,1.25226047,3336.9,3336.8,0.47962]
[1737839701099,0.77456047,3336.9,3336.8,0.47962]
[1737839701292,0.5134,3337.1,3336.9,0.47959]
[1737839701496,1.31228986,3337.1,3336.9,0.47959]
[1737839701799,0.79888986,3337.0,3336.9,0.47959]
[1737839702703,0.79888986,3337.0,3336.4,1.4783]
[1737839703000,0.79888986,3337.0,3336.8,0.47961]
[1737839705604,0.79888986,3337.0,3336.4,1.4783]
[1737839705605,0.79888986,3337.0,3336.9,0.4796]
[1737839708502,0.41002347,3337.0,3336.9,0.4796]
[1737839708704,0.40912895,3337.2,3337.1,0.47957]
[1737839708899,0.00449775,3337.5,3337.4,0.47953]
[1737839711604,2.28330995,3337.5,3337.0,1.4875]
[1737839711804,5.9661822,3337.2,3337.0,1.4875]
[1737839712105,0.00449775,3337.5,3337.0,1.4875]
[1737839712300,0.00449775,3337.5,3337.4,0.47953]
[1737839712804,0.00449775,3337.5,3337.3,0.47953]
[1737839712995,0.00449775,3337.5,3337.0,1.4875]
[1737839713192,0.00449775,3337.5,3337.4,0.47953]
[1737839720016,0.00449775,3337.5,3337.4,9.47953]
[1737839725019,0.00449775,3337.5,3337.4,14.47953]
[1737839725227,0.39940567,3338.0,3337.4,14.47953]
[1737839725519,3.2384122,3338.4,3338.3,0.4794]
[1737839725520,1.43899,3338.4,3338.3,0.4794]
[1737839725711,2.22599323,3338.4,3338.3,0.4794]
[1737839726217,0.4794,3338.3,3338.2,0.47941]
[1737839726419,0.39944449,3338.3,3338.2,0.47941]
[1737839727222,0.98784775,3338.7,3338.5,0.47937]
[1737839727223,0.7869511,3338.6,3338.5,0.47937]
[1737839727427,1.2663111,3338.6,3338.5,0.47937]
[1737839727721,0.87880449,3338.6,3338.5,0.47937]
[1737839727917,0.87880449,3338.6,3338.4,0.47938]
[1737839728519,0.39944449,3338.6,3338.4,0.47938]
[1737839729523,0.39944449,3338.6,3338.5,0.47937]
[1737839732025,0.39944449,3338.6,3338.1,1.457]
[1737839732325,0.39944449,3338.6,3338.4,0.47938]
[1737839732918,0.87880449,3338.6,3338.4,0.47938]
[1737839734323,0.87880449,3338.6,3338.1,1.457]
[1737839734521,0.47937,3338.5,3338.1,1.457]
[1737839734828,0.4995,3338.4,3338.3,0.4794]
[1737839735028,0.89894449,3338.4,3338.3,0.4794]
[1737839735222,1.40504449,3338.4,3338.3,0.4794]
[1737839735524,1.79287673,3338.4,3338.3,0.4794]
[1737839738824,1.79287673,3338.4,3338.1,4.6648]
[1737839739126,0.47941,3338.2,3338.1,3.2078]
[1737839739329,1.26668673,3338.2,3338.1,3.2078]
[1737839739521,1.73918673,3338.2,3338.1,3.2078]
[1737839741528,0.47943,3338.1,3338.0,0.00449775]
[1737839741734,1.26670673,3338.1,3338.0,0.00449775]
[1737839742630,0.87887449,3338.1,3338.0,0.00449775]
[1737839743830,1.2672297,3338.1,3338.0,0.00449775]
[1737839744032,0.87887449,3338.1,3338.0,0.00449775]
[1737839744432,1.26722493,3338.1,3338.0,0.00449775]
[1737839749846,3.54603713,3338.1,3338.0,0.00449775]
[1737839750537,3.54603713,3338.1,3337.4,8.58098103]
[1737839750538,0.47951,3337.5,3337.4,8.58098103]
[1737839750742,5.9661222,3337.5,3337.4,8.58098103]
[1737839751044,6.75391713,3337.5,3337.4,8.58098103]
[1737839751239,11.75391713,3337.5,3337.4,8.58098103]
[1737839751737,0.47956,3337.2,3337.1,0.00449775]
[1737839751940,0.47973,3336.1,3335.7,0.47977]
[1737839752134,0.47974,3336.0,3335.6,0.96749]
[1737839752340,2.67825669,3336.1,3335.2,3.2078]
[1737839752530,0.47975,3335.9,3335.4,0.4798]
[1737839752737,0.47975,3335.9,3335.5,0.4798]
[1737839752936,0.4726,3335.8,3335.5,0.4798]
[1737839753939,0.4726,3335.8,3335.4,0.47981]
[1737839754545,0.4726,3335.8,3335.2,3.2078]
[1737839754746,0.4726,3335.8,3335.5,0.4798]
[1737839755240,3.2477122,3335.8,3335.2,3.2078]
[1737839755444,0.47981,3335.5,3335.2,3.2078]
[1737839755746,0.47981,3335.5,3335.1,0.47985]
[1737839756638,0.4798,3335.6,3335.3,0.47983]
[1737839756838,0.4798,3335.6,3335.2,0.47984]
[1737839757539,0.4798,3335.6,3335.0,0.4877]
[1737839757944,0.4798,3335.6,3335.2,0.47984]
[1737839758134,0.4798,3335.6,3335.0,0.4877]
[1737839758545,0.4798,3335.6,3335.3,0.47983]
[1737839759449,3.68758,3335.7,3335.4,0.47981]
[1737839759750,3.68758,3335.7,3335.3,0.47983]
[1737839761348,3.2078,3335.7,3335.3,0.47983]
[1737839761849,0.4798,3335.6,3335.2,0.47984]
[1737839762252,3.68758,3335.7,3335.3,0.47983]
[1737839762850,3.68758,3335.7,3335.0,0.96757]
[1737839762851,0.47983,3335.4,3335.0,0.96757]
[1737839763050,2.2788122,3335.2,3334.9,3.68768]
[1737839763258,2.7586622,3335.2,3334.9,3.68769]
[1737839764550,2.2788122,3335.2,3334.9,3.2078]
[1737839764741,2.2788122,3335.2,3335.0,0.47987]
[1737839764945,2.2788122,3335.2,3334.9,3.2078]
[1737839765141,0.47987,3335.1,3334.9,3.2078]
[1737839765449,0.5002,3335.6,3334.9,3.2078]
[1737839765450,2.2788122,3335.5,3334.9,3.2078]
[1737839765660,3.2078,3335.7,3335.6,0.47979]
[1737839768353,3.2078,3335.7,3335.5,0.4798]
[1737839768556,3.2078,3335.7,3335.0,0.9727]
[1737839768853,0.47979,3335.6,3335.3,0.47982]
[1737839769055,3.68758,3335.7,3335.3,0.47982]
[1737839770648,3.2078,3335.7,3335.1,0.47986]
[1737839770959,3.68757,3335.7,3335.3,0.47982]
[1737839771454,3.2078,3335.7,3335.4,0.47982]
[1737839771846,3.2078,3335.7,3335.3,0.47982]
[1737839772047,0.47979,3335.6,3335.3,0.47982]
[1737839772256,3.68758,3335.7,3335.4,0.47981]
[1737839774155,3.2078,3335.7,3335.4,0.47981]
[1737839774360,3.2078,3335.7,3335.5,0.47979]
[1737839774562,3.2078,3335.7,3335.6,0.47979]
[1737839774755,3.2078,3335.7,3335.5,0.47979]
[1737839775156,3.2078,3335.7,3335.0,2.17239]
[1737839775462,3.2078,3335.7,3335.6,0.47979]
[1737839778959,0.00449775,3336.0,3335.6,0.47979]
[1737839779166,0.00449775,3336.0,3335.9,0.47974]
[1737839779965,0.00449775,3336.0,3335.9,3.68754]
[1737839780761,3.2078,3336.5,3336.4,0.47967]
[1737839781062,3.6078244,3336.5,3336.4,0.47967]
[1737839781862,0.4000244,3336.5,3336.4,0.47967]
[1737839782061,0.00449775,3336.8,3336.7,0.47963]
[1737839782269,5.49110995,3336.8,3336.7,0.47963]
[1737839782472,6.27919237,3336.8,3336.1,1.19929]
[1737839782765,0.78808242,3336.7,3336.6,0.47964]
[1737839783173,0.4000244,3336.7,3336.6,0.47964]
[1737839784063,3.21229775,3336.8,3336.7,0.47963]
[1737839784966,0.00449775,3336.8,3336.7,0.47963]
[1737839788871,0.00449775,3336.8,3336.7,3.68743]
[1737839795372,0.00449775,3336.8,3336.7,0.47963]
[1737839809792,7.75e-06,3336.8,3336.7,5.47963]
[1737839809989,0.4854,3337.8,3336.7,5.47963]
[1737839809990,0.9827,3337.8,3337.7,0.47949]
[1737839810991,0.4854,3337.8,3337.7,0.47949]
[1737839811496,0.48799775,3338.1,3338.0,0.47944]
[1737839811497,2.76680995,3338.1,3338.0,0.47944]
[1737839811694,0.48799775,3338.1,3338.0,0.47944]
[1737839812895,0.91433268,3338.1,3338.0,0.23477503]
[1737839813092,1.30288536,3338.1,3338.0,0.23477503]
[1737839814389,1.30288536,3338.1,3337.9,3.2078]
[1737839814591,0.47947,3337.9,3337.8,0.47946]
[1737839814790,1.29435761,3337.9,3337.8,0.47946]
[1737839815093,1.29435761,3337.9,3337.4,0.00449775]
[1737839815094,0.81488761,3337.9,3337.4,0.00449775]
[1737839815297,0.97528,3337.8,3337.7,0.47948]
[1737839815488,1.79016761,3337.8,3337.7,0.47948]
[1737839815685,1.31068761,3337.8,3337.7,0.47948]
[1737839816292,1.31068761,3337.8,3337.6,0.47949]
[1737839816598,1.31068761,3337.8,3337.4,0.00449775]
[1737839816599,1.77687761,3337.7,3337.4,0.00449775]
[1737839816786,0.96199,3337.7,3337.6,0.4795]
[1737839816991,1.2910256,3337.7,3337.6,0.4795]
[1737839820701,0.47951,3337.6,3337.4,0.00449775]
[1737839820900,3.2320222,3337.5,3337.4,0.00449775]
[1737839821193,4.0405478,3337.5,3337.4,0.00449775]
[1737839821398,3.5610378,3337.5,3337.4,0.00449775]
[1737839823901,4.0405478,3337.5,3337.4,0.00449775]
[1737839825197,3.5610378,3337.5,3337.4,0.00449775]
[1737839826509,4.0405478,3337.5,3337.4,0.00449775]
[1737839828098,0.8085256,3337.5,3337.4,0.48402775]
[1737839828294,0.42040865,3337.5,3337.4,3.69182775]
[1737839828601,0.4958,3337.8,3337.7,0.47949]
[1737839828804,3.686,3338.0,3337.5,3.2925122]
[1737839829000,3.2078,3338.0,3337.9,0.47946]
[1737839829405,0.00449775,3338.1,3338.0,0.47944]
[1737839829599,0.00449775,3338.1,3338.0,0.96654]
[1737839833115,0.00449775,3338.1,3338.0,0.47944]
[1737839833409,2.28330995,3338.1,3337.5,1.0137]
[1737839833610,0.47946,3337.9,3337.8,0.47947]
[1737839833925,0.89977893,3337.9,3337.8,0.47947]
[1737839834210,0.42031893,3337.9,3337.8,0.47947]
[1737839834410,0.42031893,3337.9,3337.5,1.0137]
[1737839834411,0.89977893,3337.9,3337.5,1.0137]
[1737839834612,0.42031893,3337.8,3337.7,0.47948]
[1737839835308,0.42031893,3337.8,3337.4,0.00449775]
[1737839835508,0.47951,3337.6,3337.4,0.48401775]
[1737839835810,0.47951,3337.5,3337.4,0.00449775]
[1737839836010,0.80791906,3337.6,3337.4,0.00449775]
[1737839836210,0.42031893,3337.5,3337.4,0.48401775]
[1737839836408,0.42031893,3337.5,3337.4,0.48402775]
[1737839836409,0.89982893,3337.5,3337.4,0.48402775]
[1737839836616,1.28742433,3337.5,3337.4,0.48402775]
[1737839836910,0.80791433,3337.5,3337.4,0.48402775]
[1737839837412,0.42031893,3337.5,3337.4,0.48402775]
[1737839837812,0.80792223,3337.5,3337.4,0.48402775]
[1737839838410,0.41985489,3337.6,3337.5,0.47951]
[1737839838711,0.38760619,3337.6,3337.5,0.47951]
[1737839838913,0.80746107,3337.7,3337.6,0.4795]
[1737839843825,0.41985488,3337.7,3337.6,0.4795]
[1737839845919,0.80760312,3337.7,3337.6,0.4795]
[1737839848621,0.80760312,3337.7,3337.5,0.47951]
[1737839848822,1.28709312,3337.7,3337.5,0.47951]
[1737839849023,0.80760312,3337.6,3337.5,0.47951]
[1737839849824,0.80760312,3337.6,3337.4,0.48401775]
[1737839850122,0.4922,3337.5,3337.4,0.48401775]
[1737839850316,1.29980312,3337.5,3337.4,0.48401775]
[1737839853225,0.80760312,3337.5,3337.4,0.48401775]
[1737839853520,0.42009327,3337.7,3337.5,0.4795]
[1737839853730,1.28741307,3337.7,3337.5,0.4795]
[1737839854026,0.80792307,3337.6,3337.5,0.4795]
[1737839854525,0.80792307,3337.7,3337.5,0.4795]
[1737839854727,1.28741307,3337.7,3337.5,0.4795]
[1737839854924,0.80792307,3337.6,3337.5,0.4795]
[1737839855225,0.42009518,3337.7,3337.5,0.47951]
[1737839855520,0.42009518,3337.7,3337.6,0.4795]
[1737839857229,0.42009518,3337.7,3337.4,0.00449775]
[1737839857541,0.42009518,3337.7,3337.6,0.47945]
[1737839858025,0.00449775,3338.1,3337.5,2.2788122]
[1737839858229,0.00449775,3338.1,3338.0,3.6872]
[1737839877728,0.9438809,3338.1,3338.0,3.6872]
[1737839878036,1.4284809,3338.1,3338.0,3.6872]
[1737839878241,1.00939775,3338.1,3338.0,3.6872]
[1737839880333,0.48909775,3338.1,3338.0,3.6872]
[1737839881930,0.9086818,3338.1,3338.0,3.6872]
[1737839883639,0.00449775,3338.1,3338.0,3.6872]
[1737839884140,0.00449775,3338.1,3338.0,4.1784]
[1737839885441,0.00449775,3338.1,3338.0,9.1784]
[1737839885639,0.00449775,3338.1,3338.0,4.1784]
[1737839890453,0.00449775,3338.1,3338.0,3.6872]
[1737839892346,0.48387775,3338.1,3338.0,3.6872]
[1737839892742,0.42513813,3338.1,3338.0,3.6872]
[1737839893445,0.00449775,3338.1,3338.0,3.6872]
[1737839894349,0.42513813,3338.1,3338.0,3.6872]
[1737839894549,0.00449775,3338.1,3338.0,3.6872]
[1737839895148,0.48387775,3338.1,3338.0,3.2078]
[1737839895348,1.29256213,3338.1,3338.0,3.2078]
[1737839895554,0.90451813,3338.1,3338.0,3.2078]
[1737839896153,0.42513813,3338.1,3338.0,3.2078]
[1737839896458,0.00449775,3338.1,3338.0,3.6872]
[1737839897049,0.42513813,3338.1,3338.0,3.6872]
[1737839900554,0.81280259,3338.1,3338.0,3.6872]
[1737839901543,0.00449775,3338.1,3338.0,3.6872]
[1737839903050,0.42513813,3338.1,3338.0,3.6872]
[1737839903255,0.00449775,3338.1,3338.0,3.6872]
[1737839905250,7.75e-06,3338.1,3338.0,3.6872]
[1737839909759,7.75e-06,3338.1,3338.0,3.93219578]
[1737839913664,7.75e-06,3338.1,3338.0,3.6872]
[1737839918261,0.41979592,3339.0,3338.0,8.2078]
[1737839918562,0.4871,3339.1,3339.0,0.47925]
[1737839918768,0.4871,3339.1,3339.0,2.7580622]
[1737839918970,0.47915,3339.7,3339.3,0.47921]
[1737839919165,13.1878115,3339.4,3339.3,0.47921]
[1737839921474,0.4196525,3339.4,3339.3,0.47921]
[1737839921671,0.4196525,3339.6,3339.5,0.47918]
[1737839922771,0.80684883,3339.6,3339.5,0.47918]
[1737839925370,1.28601883,3339.6,3339.5,0.47918]
[1737839930865,1.28601883,3339.6,3339.4,0.47919]
[1737839931071,0.49539775,3339.7,3339.4,0.47919]
[1737839931072,0.8988325,3339.5,3339.4,0.47919]
[1737839931265,0.86684794,3339.5,3339.4,0.47919]
[1737839931479,1.28650044,3339.5,3339.4,0.47919]
[1737839934778,0.4196525,3339.5,3339.4,0.47919]
[1737839935079,0.42035083,3339.6,3339.5,0.47918]
[1737839935275,0.49539775,3339.7,3339.6,0.47917]
[1737839935477,0.49539775,3339.7,3339.6,0.97447]
[1737839944088,0.49539775,3339.7,3339.6,4.18227]
[1737839944287,0.49539775,3339.7,3339.6,3.2078]
[1737839944490,1.84403659,3339.7,3339.6,3.2078]
[1737839944986,2.25464885,3339.7,3339.6,3.2078]
[1737839945392,2.25464885,3339.7,3339.6,3.68697]
[1737839946990,2.25464885,3339.7,3339.6,0.47917]
[1737839947188,1.77549885,3339.7,3339.6,0.47917]
[1737839947485,2.25464885,3339.7,3339.6,0.47917]
[1737839947988,1.29379885,3339.7,3339.6,3.68697]
[1737839948178,0.00449775,3339.7,3339.6,3.68697]
[1737839948486,0.00449775,3339.7,3339.6,5.17217]
[1737839950686,0.79890202,3340.3,3340.2,0.47908]
[1737839950687,0.41087897,3340.3,3340.2,0.47908]
[1737839950885,0.90897362,3340.7,3340.6,0.47902]
[1737839951091,1.31985259,3340.7,3340.6,0.47902]
[1737839951384,1.79870171,3340.7,3340.6,0.47902]
[1737839951589,1.31969078,3340.7,3340.6,0.47902]
[1737839952090,0.93187897,3340.7,3340.6,0.47902]
[1737839952983,1.79859482,3340.7,3340.5,0.47903]
[1737839953185,0.79857482,3340.6,3340.5,0.47903]
[1737839955197,0.41087897,3340.6,3340.5,0.47903]
[1737839959899,0.41087897,3340.6,3340.5,2.7578422]
[1737839960197,0.92896965,3341.0,3340.9,0.47898]
[1737839962814,0.00449068,3341.0,3340.9,0.47898]
[1737839963007,0.00449068,3341.0,3340.9,1.44268]
[1737839965008,0.4099354,3341.4,3340.9,1.44268]
[1737839965208,0.4099354,3341.4,3341.3,0.47892]
[1737839965608,0.8888454,3341.4,3341.1,3.2078]
[1737839965908,0.8888454,3341.4,3341.3,0.47892]
[1737839966612,0.8888454,3341.4,3341.1,3.2078]
[1737839966613,0.4099354,3341.4,3341.1,3.2078]
[1737839966810,0.4099354,3341.4,3341.0,0.00449068]
[1737839966811,0.47895,3341.1,3341.0,0.00449068]
[1737839967409,1.00045,3341.1,3341.0,0.00449068]
[1737839967612,0.9314354,3341.1,3341.0,0.00449068]
[1737839967913,0.9314354,3341.1,3341.0,0.48345068]
[1737839968711,1.4103854,3341.1,3341.0,0.48345068]
[1737839969805,0.9314354,3341.1,3341.0,0.48345068]
[1737839970814,0.9314354,3341.1,3341.0,0.00449068]
[1737839971017,1.79742714,3341.1,3341.0,0.00449068]
[1737839972313,1.4103854,3341.1,3341.0,0.00449068]
[1737839972616,1.7974631,3341.1,3341.0,0.00449068]
[1737839974319,1.7974631,3341.1,3341.0,0.48345068]
[1737839974622,1.4103854,3341.1,3341.0,0.48345068]
[1737839976016,1.4103854,3341.1,3341.0,0.00449068]
[1737839976312,0.9314354,3341.1,3341.0,0.00449068]
[1737839976518,0.9314354,3341.1,3341.0,0.48345068]
[1737839977317,0.4099354,3341.1,3341.0,0.48345068]
[1737839977621,1.30656084,3341.4,3341.3,0.47892]
[1737839983022,0.9187354,3341.4,3341.3,3.68672]
[1737839983221,0.4099354,3341.4,3341.3,3.68672]
[1737839983522,0.00449068,3341.7,3341.6,0.47888]
[1737839983523,1.31931915,3341.7,3341.6,0.47888]
[1737839984227,0.41442608,3341.7,3341.6,0.47888]
[1737839984517,0.00449068,3341.7,3341.6,0.47888]
[1737839993921,0.8026093,3341.7,3341.6,0.47888]
[1737839994519,0.8026093,3341.7,3341.3,3.2078]
[1737839994720,0.47895,3341.1,3341.0,0.00449068]
[1737839995325,0.47895,3341.1,3341.0,0.48345068]
[1737839995529,1.27706862,3341.1,3341.0,0.48345068]
[1737839998426,0.8888854,3341.1,3341.0,0.48345068]
[1737839999024,0.47895,3341.1,3341.0,0.48345068]
[1737839999926,0.8888854,3341.1,3341.0,0.48345068]
[1737840000317,0.47895,3341.1,3341.0,0.48345068]